Cogmind - Beta 13 X1 @@@ ROGUE MODE // 2023.06.29 @ 14:32:59 Player: Terminus Result: Destroyed by G-50 Soldier with Heavy Laser Performance ------------- Evolutions (1) 500 Regions Visited (6) 1200 Robots Destroyed (84) 420 Value Destroyed (1802) 1802 Prototype IDs (6) 120 Alien Tech Used (0) 0 Bonus (105) 105 TOTAL SCORE: 4147 Bonus ------- High Alert Combat Kills 57 Follower Combat Kills 48 Cogmind --------- Core Integrity 0/400 Matter 264/300 Energy 223/265 System Corruption 4% Temperature Hot (241) Movement Rolling (165) Ox5 Location -8/Mines Parts ------- > --- POWER (1) -------- Improved Ion Engine > --- PROPULSION (2) --- Armored Wheel > --- UTILITY (3) ------ Cooling System High-capacity Storage Unit Hardened Medium Armor Plating > --- WEAPON (3) ------- Beam Rifle High-powered Shotgun > --- INVENTORY (20) --- Improved Ion Engine Wheel Wheel Huge Storage Unit Improved Signal Interpreter Hardened Medium Armor Plating Insulated Plating Insulated Plating Hacking Suite EM Pulse Gun EM Pulse Cannon Grenade Launcher Hammer Peak State ------------ > --- POWER ------------ Improved Ion Engine > --- PROPULSION ------- Wheel Armored Wheel > --- UTILITY ---------- Cooling System High-capacity Storage Unit Hardened Medium Armor Plating > --- WEAPON ----------- Beam Rifle Beam Rifle High-powered Shotgun > --- INVENTORY -------- Improved Ion Engine Wheel Wheel Cooling System Huge Storage Unit Improved Signal Interpreter Hardened Medium Armor Plating Hardened Medium Armor Plating Insulated Plating Insulated Plating Hacking Suite EM Pulse Gun EM Pulse Cannon Grenade Launcher Hammer [Rating: 21] Favorites ----------- Power Ion Engine Engine Ion Engine Propulsion Light Treads Treads Light Treads Wheel Armored Wheel Utility High-capacity Storage Unit Device Cooling System Storage High-capacity Storage Unit Protection Core Shielding Weapon Beam Cannon Energy Gun Beam Rifle Energy Cannon Beam Cannon Ballistic Gun Subdweller Machine Gun Launcher Grenade Launcher Build | -11 -10 -10 -9 -9 -9 -8 ------- Run | Jun Mat Sub Mat Min Exi Min Slots Evolved 2 | . . . 2 . . . Power . | . . . . . . . Propulsion . | . . . . . . . Utility 1 | . . . 1 . . . Weapon 1 | . . . 1 . . . Parts Attached 78 | 6 5 17 31 9 2 8 Power 12 | 1 . 2 8 1 . . Engine 12 | 1 . 2 8 1 . . Core . | . . . . . . . Reactor . | . . . . . . . Propulsion 13 | 2 . 3 6 2 . . Treads 11 | 2 . 3 6 . . . Leg . | . . . . . . . Wheel 2 | . . . . 2 . . Hover . | . . . . . . . Flight . | . . . . . . . Utility 21 | 1 2 4 10 2 . 2 Device 7 | . 1 1 4 . . 1 Storage 4 | 1 1 1 1 . . . Processor . | . . . . . . . Hackware . | . . . . . . . Protection 10 | . . 2 5 2 . 1 Artifact . | . . . . . . . Weapon 32 | 2 3 8 7 4 2 6 Energy Gun 14 | 1 2 1 2 4 2 2 Energy Cannon 12 | . 1 5 5 . . 1 Ballistic Gun 5 | 1 . 2 . . . 2 Ballistic Cannon . | . . . . . . . Launcher 1 | . . . . . . 1 Special Weapon . | . . . . . . . Impact Weapon . | . . . . . . . Slashing Weapon . | . . . . . . . Piercing Weapon . | . . . . . . . Special Melee Weapon . | . . . . . . . Unidentified Prototypes 3 | . . . 3 . . . Parts Lost 20 | . . 3 4 9 . 4 Power 3 | . . 2 . 1 . . Propulsion 4 | . . 1 . 2 . 1 Utility 5 | . . . 2 1 . 2 Weapon 8 | . . . 2 5 . 1 Highest Loss Streak 7 | . . 1 2 7 . 4 To Critical Strikes 2 | . . . 1 1 . . Average Slot Usage (%) 97 | . 96 99 99 96 70 96 Engine 12 | . 14 13 10 11 11 11 Treads 23 | . 28 28 22 16 . . Wheel 1 | . . . . 4 22 21 Device 8 | . 10 1 10 11 11 11 Storage 12 | . 14 13 11 11 11 11 Protection 9 | . . 11 11 10 11 11 Energy Gun 10 | . 18 1 6 25 4 22 Energy Cannon 16 | . 5 19 26 4 . . Ballistic Gun 2 | . 3 7 . . . 7 Naked Turns . | . . . . . . . Heaviest Build 69 | 13 51 62 66 66 63 69 Greatest Support 43 | 40 40 40 43 40 22 22 Greatest Overweight (x) 3 | . 1 1 1 3 2 3 Average Overweight (x) 1 | . . . 1 1 2 2 Largest Inventory Capacity 20 | 8 20 20 20 20 20 20 Average Capacity 19 | 7 19 19 20 20 20 20 Most Carried 20 | 3 20 20 20 20 16 15 Average Carried 17 | 1 13 19 19 18 15 14 Final Capacity 20 | 8 20 20 20 20 20 20 Final Carried 20 | 3 20 20 20 14 14 13 Class Distribution -------------------- 53% | Mutant 45% | Tank Dominant Class ---------------- Mutant | -10/Materials Mutant | -10/Subcaves Tank | -9/Materials Tank | -9/Mines Mutant | -9/Exiles Tank | -8/Mines Resources | -11 -10 -10 -9 -9 -9 -8 ----------- Run | Jun Mat Sub Mat Min Exi Min Matter Collected 1038 | 239 91 211 339 90 . 68 Remotely . | . . . . . . . Salvage Created 2753 | . 258 572 1507 401 . 15 Parts 168 | . 14 36 97 20 . 1 Haulers Intercepted 7 | . 1 . 6 . . . Recyclers Shooed 3 | . 2 . 1 . . . Parts Field Recycled . | . . . . . . . Retrieved Matter . | . . . . . . . Parts Self-Destructed 9 | . . 9 . . . . Prevented . | . . . . . . . Kills | -11 -10 -10 -9 -9 -9 -8 ------- Run | Jun Mat Sub Mat Min Exi Min Combat Hostiles Destroyed 66 | . 6 16 26 18 . . Guns 28 | . 6 4 2 16 . . Cannons 34 | . . 10 22 2 . . Classes Destroyed 13 | . 4 1 7 1 . . Worker 4 | . 1 . 3 . . . Builder 5 | . . . 4 1 . . Tunneler 2 | . . . 1 . . 1 Hauler 7 | . 1 . 6 . . . Recycler 1 | . . . 1 . . . Operator 2 | . . . 2 . . . Watcher 5 | . . . 5 . . . Swarmer 24 | . 2 4 11 7 . . Grunt 14 | . 4 . 7 3 . . Duelist 1 | . . . 1 . . . Sentry 7 | . . . 7 . . . Subdweller 12 | . . 12 . . . . Assembled 8 | . . . . 8 . . Best Kill Streak 7 | . 2 4 7 4 . 1 Combat Bots Only 4 | . 2 4 4 4 . . Max Kills in Single Turn 2 | . 1 1 2 2 . 1 Gunslinging . | . . . . . . . Exploded . | . . . . . . . Melee . | . . . . . . . Uniques/NPCs Destroyed . | . . . . . . . Combat | -11 -10 -10 -9 -9 -9 -8 -------- Run | Jun Mat Sub Mat Min Exi Min Damage Taken 4116 | . 308 878 1135 1375 . 420 Core 643 | . 72 164 174 132 . 101 Absorbed by Shields . | . . . . . . . Redirected to Shielding 37 | . . 31 6 . . . Core Remaining (%) 52 | 100 . 5 . . . . Volleys Fired 258 | . 40 73 92 43 . 10 Largest 3 | . 2 2 3 3 . 3 Hottest 220 | . 110 110 220 172 . 137 Shots Fired 575 | . 80 104 260 110 . 21 Gun 266 | . 78 36 38 96 . 18 Cannon 309 | . 2 68 222 14 . 3 Launcher . | . . . . . . . Special . | . . . . . . . Kinetic 62 | . 29 29 . . . 4 Thermal 507 | . 51 75 260 110 . 11 Explosive . | . . . . . . . Electromagnetic 6 | . . . . . . 6 Robot Hit Streak 26 | . 18 26 13 9 . 10 Robot Miss Streak 5 | . 5 4 4 3 . 2 Penetration Max . | . . . . . . . Secondary Targets 1 | . . . . 1 . . Max Gunslinging Chain 1 | . . . . 1 . . Shots Hit Robots 343 | . 47 71 145 68 . 12 Core Hits 130 | . 16 20 55 32 . 7 Critical Kills 4 | . . 3 1 . . . Critical Parts Destroyed . | . . . . . . . Critical Strikes 14 | . 1 3 3 6 . 1 Burn 10 | . 1 . 2 6 . 1 Meltdown 3 | . . 2 1 . . . Destroy 1 | . . 1 . . . . Melee Attacks . | . . . . . . . Impact . | . . . . . . . Slashing . | . . . . . . . Piercing . | . . . . . . . Sneak Attacks . | . . . . . . . Combat Hostiles . | . . . . . . . Follow-up Attacks . | . . . . . . . Damage Inflicted 6211 | . 511 1583 2704 1073 . 340 Guns 2452 | . 455 453 403 926 . 215 Cannons 3659 | . 34 1130 2294 146 . 55 Explosions 70 | . . . . . . 70 Melee . | . . . . . . . Ramming 30 | . 22 . 7 1 . . Kinetic 673 | . 159 427 . . . 87 Thermal 5440 | . 330 1156 2697 1072 . 185 Explosive . | . . . . . . . Electromagnetic 68 | . . . . . . 68 Impact . | . . . . . . . Slashing . | . . . . . . . Piercing . | . . . . . . . Highest Corruption 4 | . . . 4 4 4 4 Average Corruption 3 | . . . 2 4 4 4 Corruption Purged . | . . . . . . . Corruption Blocked . | . . . . . . . Effects 65 | . . . 32 27 3 3 Message Errors 19 | . . . 9 6 1 3 Matter Fused 9 | . . . 5 3 1 . Heat Flow Errors 7 | . . . 3 4 . . Energy Discharges 5 | . . . 1 3 1 . Parts Fused 1 | . . . . 1 . . Data Loss (minor) 13 | . . . 8 5 . . Data Loss (major) 6 | . . . 5 1 . . Misfires 2 | . . . 1 1 . . Alerts 2 | . . . . 2 . . Weapon Failures 1 | . . . . 1 . . Overload Shots . | . . . . . . . Overflow Damage 40 | . . . 40 . . . Projectiles 40 | . . . 40 . . . Explosions . | . . . . . . . Melee . | . . . . . . . Knockbacks 1 | . 1 . . . . . Impact 1 | . 1 . . . . . Kinetic . | . . . . . . . Secondary . | . . . . . . . Self-Inflicted Damage . | . . . . . . . Shots . | . . . . . . . Rammed 8 | . 5 . 2 1 . . Targets Rammed 8 | . 5 . 2 1 . . Kicked . | . . . . . . . Crushed . | . . . . . . . Highest Temperature 339 | . 242 36 339 257 . 240 Average Temperature 92 | . 72 17 99 96 . 97 Received Heat Transfer 946 | . 126 201 249 163 . 207 Effects 1 | . 1 . . . . . Energy Bleed 1 | . 1 . . . . . Siege Activations . | . . . . . . . Robots Corrupted . | . . . . . . . Combat Hostiles . | . . . . . . . Parts Fried . | . . . . . . . Impact Corruptions . | . . . . . . . Robots Melted 4 | . . 2 2 . . . Combat Hostiles 4 | . . 2 2 . . . Parts Melted 18 | . . 5 9 4 . . Heat Transferred 12300 | . 1024 1887 5809 3060 . 520 Parts Sabotaged . | . . . . . . . Parts Stolen . | . . . . . . . Parts Stripped . | . . . . . . . Power Chain Reactions . | . . . . . . . Missiles Intercepted . | . . . . . . . Alert | -11 -10 -10 -9 -9 -9 -8 ------- Run | Jun Mat Sub Mat Min Exi Min Peak Influence 521 | . 175 . 521 255 . 61 Initial 94 | . . . . 94 . . Average 141 | . 24 . 230 107 . 6 Maximum Alert Level 2 | . . . 2 1 . . Low Security (%) 69 | 100 100 . 47 76 . 100 Level 1 22 | . . . 35 23 . . Level 2 8 | . . . 17 . . . Level 3 . | . . . . . . . Level 4 . | . . . . . . . Level 5 . | . . . . . . . High Security . | . . . . . . . Max Security . | . . . . . . . Squads Dispatched 3 | . 1 . 2 . . . Investigation . | . . . . . . . Extermination . | . . . . . . . Reinforcement 3 | . 1 . 2 . . . Assault . | . . . . . . . Garrison . | . . . . . . . Intercept . | . . . . . . . Searches Triggered . | . . . . . . . Construction Impeded . | . . . . . . . Haulers Reinforced . | . . . . . . . Active Scanning Responses . | . . . . . . . Cargo Convoy Interrupts . | . . . . . . . Stealth | -11 -10 -10 -9 -9 -9 -8 --------- Run | Jun Mat Sub Mat Min Exi Min Distress Signals 8 | . 6 . 2 . . . Communications Jammed . | . . . . . . . Distress Signals . | . . . . . . . Times Spotted 109 | . 16 17 42 29 . 5 Peak Tracking Total 10 | . 5 4 6 10 . 4 Tactical Retreats 8 | . 1 1 5 1 . . Traps | -11 -10 -10 -9 -9 -9 -8 ------- Run | Jun Mat Sub Mat Min Exi Min Traps Triggered 1 | . . . 1 . . . Indirectly . | . . . . . . . Trap Hack Attempts . | . . . . . . . Triggered . | . . . . . . . Disarmed . | . . . . . . . Reprogrammed . | . . . . . . . Reused . | . . . . . . . Traps Extracted . | . . . . . . . Installed . | . . . . . . . Triggered . | . . . . . . . Machines | -11 -10 -10 -9 -9 -9 -8 ---------- Run | Jun Mat Sub Mat Min Exi Min Machines Disabled 3 | . . . 1 1 . 1 Max in Single Turn 1 | . . . 1 1 . 1 Machines Repaired . | . . . . . . . Machines Sabotaged . | . . . . . . . Overloaded Fab Kills . | . . . . . . . Hacking | -11 -10 -10 -9 -9 -9 -8 --------- Run | Jun Mat Sub Mat Min Exi Min Machines Accessed 18 | . 5 1 11 . 1 . Terminals 15 | . 5 . 10 . . . Fabricators . | . . . . . . . Repair Stations . | . . . . . . . Recycling Units . | . . . . . . . Scanalyzers 1 | . . . 1 . . . Garrison Access . | . . . . . . . Total Hacks 65 | . 18 2 41 . 4 . Successful 34 | . 9 2 19 . 4 . Failed 29 | . 8 . 21 . . . Catastrophic 2 | . . . 2 . . . Database Lockouts 2 | . 1 . 1 . . . Manual 41 | . 14 . 27 . . . Terminals 57 | . 18 . 39 . . . Fabricators . | . . . . . . . Repair Stations . | . . . . . . . Recycling Units . | . . . . . . . Scanalyzers 2 | . . . 2 . . . Garrison Access . | . . . . . . . Terminal Hacks 21 | . 4 2 11 . 4 . Record 6 | . . 2 . . 4 . Robot Analysis 4 | . 1 . 3 . . . Prototype ID Bank 2 | . . . 2 . . . Unreport Threat 2 | . . . 2 . . . Hauler Manifests 3 | . 1 . 2 . . . Zone Layout 4 | . 2 . 2 . . . Fabricator Hacks . | . . . . . . . Repair Station Hacks . | . . . . . . . Recycling Unit Hacks . | . . . . . . . Scanalyzer 2 | . . . 2 . . . Insert Component 1 | . . . 1 . . . Analyze 1 | . . . 1 . . . Garrison Access Hacks . | . . . . . . . Unauthorized Hacks 11 | . 5 . 6 . . . Terminals 11 | . 5 . 6 . . . Track 1 | . 1 . . . . . Botnet 10 | . 4 . 6 . . . Fabricators . | . . . . . . . Repair Stations . | . . . . . . . Recycling Units . | . . . . . . . Scanalyzers . | . . . . . . . Garrison Access . | . . . . . . . Data Cores Recovered . | . . . . . . . Used . | . . . . . . . Hacking Detections 15 | . 5 . 10 . . . Full Trace Events 1 | . 1 . . . . . Feedback Events . | . . . . . . . Feedback Blocked . | . . . . . . . Robot Schematics Acquired . | . . . . . . . Robots Built . | . . . . . . . Authchips . | . . . . . . . Time . | . . . . . . . Total Robot Build Rating . | . . . . . . . Part Schematics Acquired 1 | . . . 1 . . . Parts Built . | . . . . . . . Authchips . | . . . . . . . Time . | . . . . . . . Total Part Build Rating . | . . . . . . . Parts Repaired . | . . . . . . . Time . | . . . . . . . Parts Recycled . | . . . . . . . Recycled Matter . | . . . . . . . Retrieved Matter . | . . . . . . . Retrieved Components . | . . . . . . . Parts Scanalyzed 1 | . . . 1 . . . Part Schematics Acquired 1 | . . . 1 . . . Parts Damaged . | . . . . . . . Bothacking | -11 -10 -10 -9 -9 -9 -8 ------------ Run | Jun Mat Sub Mat Min Exi Min Used RIF Installer . | . . . . . . . Robots Hacked . | . . . . . . . Non-combat . | . . . . . . . Combat . | . . . . . . . Robot Hacks Applied . | . . . . . . . Relay Couplers Released . | . . . . . . . Fabnet Peak Effective % . | . . . . . . . Robots Rewired 1 | . . . . . . 1 Allies Hacked . | . . . . . . . Hacks Repelled . | . . . . . . . Allies | -11 -10 -10 -9 -9 -9 -8 -------- Run | Jun Mat Sub Mat Min Exi Min Total Allies 2 | . . . . 1 . 1 Largest Group 1 | . . . . 1 . 1 Highest-Rated Group 31 | . . . . 31 . 21 Highest-Rated Ally 31 | . . . . 31 . 21 Total Orders . | . . . . . . . Ally Attacks 14 | . . . . 12 . 2 Total Damage 204 | . . . . 170 . 34 Kills 2 | . . . . 1 . 1 Allies Corrupted . | . . . . . . . Allies Melted . | . . . . . . . Intel | -11 -10 -10 -9 -9 -9 -8 ------- Run | Jun Mat Sub Mat Min Exi Min Robot Analysis Total 4 | . 1 . 3 . . . Derelict Logs Recovered 4 | . . 2 . 2 . . Drone Launches . | . . . . . . . Drone Recoveries . | . . . . . . . Exploration | -11 -10 -10 -9 -9 -9 -8 ------------- Run | Jun Mat Sub Mat Min Exi Min Turns Passed 8524 | 84 1609 2290 2988 1196 197 160 Spaces Moved 3289 | 53 594 808 1056 513 169 96 Core 11 | 11 . . . . . . Treads 2837 | 42 594 808 1056 337 . . Legs . | . . . . . . . Wheels 441 | . . . . 176 169 96 Hover . | . . . . . . . Flight . | . . . . . . . Fastest Speed 50 | 50 160 160 240 115 115 115 Average Speed 223 | 137 235 248 241 197 115 115 Slowest Speed 400 | 160 240 250 250 400 115 130 Overloaded Moves . | . . . . . . . Propulsion Burnouts . | . . . . . . . Robots Hopped . | . . . . . . . Cave-ins Triggered . | . . . . . . . Exploration Rate (%) 56 | 4 93 53 85 85 53 23 Regions Visited 6 Branch Regions 4 Pre-discovered Areas 2 | . . . . 1 1 . Known Exits Taken 1 | . . 1 . . . . Unknown Exits Taken 5 | 1 1 . 1 1 1 . Scrap Searched 7 | . . 5 . 1 . 1 Spaces Dug . | . . . . . . . Terrain Destroyed 20 | . . 6 5 . . 9 Melee . | . . . . . . . Projectile 11 | . . 6 5 . . . AOE 9 | . . . . . . 9 Terrain Rammed . | . . . . . . . Walls Destroyed . | . . . . . . . Machines Disabled . | . . . . . . . Actions | -11 -10 -10 -9 -9 -9 -8 --------- Run | Jun Mat Sub Mat Min Exi Min Total 3989 | 61 723 989 1318 602 172 124 Wait 211 | . 50 53 69 34 . 5 Move 3283 | 52 593 807 1055 512 168 96 Hop . | . . . . . . . Pick Up 81 | 3 23 23 29 2 . 1 Fast Attach 28 | 6 2 8 10 1 . 1 Attach 22 | . . 3 8 7 2 2 Detach 2 | . . . . . 2 . Swap 28 | . 3 6 13 1 . 5 Drop 64 | . 7 16 40 1 . . Fire 258 | . 40 73 92 43 . 10 Melee . | . . . . . . . Ram . | . . . . . . . Kick . | . . . . . . . Crush 8 | . 5 . 2 1 . . Escape Stasis . | . . . . . . . Rewire 4 | . . . . . . 4 Trap . | . . . . . . . Miscellaneous . | . . . . . . . Route ------- -11/Junkyard -10/Materials (discovered 6 exits: *Mat x3 / [*Min x2] / *Sub) -10/Subcaves (discovered 2 exits: *Mat / [*Mat]) -9/Materials (discovered 3 exits: [*Mat x2] / [*Min]) -9/Mines (discovered 3 exits: [*Mat x2] / *Exi) -9/Exiles -8/Mines History --------- Turn | Location | Event 4 | -11/Junkyard | Discovered new exit (range 16) 85 | -11/Junkyard | Entered Materials 95 | -10/Materials | Discovered new exit (range 16) 305 | -10/Materials | Build established: Mutant 372 | -10/Materials | Discovered new exit (range 6) 591 | -10/Materials | Discovered new exit (range 10) 700 | -10/Materials | Derelicts attacked the area 803 | -10/Materials | Central database locked down 900 | -10/Materials | Discovered new exit (range 15) 1120 | -10/Materials | Discovered new exit (range 16) 1476 | -10/Materials | Discovered new exit (range 16) 1694 | -10/Materials | Entered Subcaves 1781 | -10/Subcaves | Visited Clippyterm 1788 | -10/Subcaves | Learned Factory garrison access intel 1862 | -10/Subcaves | Shifting Twisted Machinery released Sub. Beam Cannon 2009 | -10/Subcaves | Shifting Twisted Machinery released Spk. Treads 2025 | -10/Subcaves | Discovered new exit (range 5) 2086 | -10/Subcaves | Identified exit to Materials 2125 | -10/Subcaves | A swath of the cavern ceiling suddenly collapsed 2373 | -10/Subcaves | Core integrity fell below 50% 3078 | -10/Subcaves | Core integrity fell below 20% 3151 | -10/Subcaves | Shifting Twisted Machinery released Sub. Monowheel 3330 | -10/Subcaves | Learned Materials terminal intel 3331 | -10/Subcaves | Shifting Twisted Machinery released Battle Cannon 3856 | -10/Subcaves | Shifting Twisted Machinery released Sub. Power Source 3862 | -10/Subcaves | Shifting Twisted Machinery released Sub. Beam Cannon 3984 | -10/Subcaves | Entered Materials 3984 | -9/Materials | Evolved 2 slots: Utility x1, Weapon x1 3985 | -9/Materials | Loaded intel: 12 terminal locations 4441 | -9/Materials | Build established: Tank 5276 | -9/Materials | Discovered new exit (range 12) 5820 | -9/Materials | Discovered new exit (range 16) 6507 | -9/Materials | Central database locked down 6712 | -9/Materials | Discovered new exit (range 16) 6972 | -9/Materials | Entered Mines 6975 | -9/Mines | Received a Mining Laser from a helpful Derelict 7131 | -9/Mines | A weapon hastily lodged in a ceiling crevice suddenly fell to the ground 7177 | -9/Mines | Learned Materials emergency access door positions 7514 | -9/Mines | Discovered new exit (range 3) 7611 | -9/Mines | Discovered new exit (range 11) 7826 | -9/Mines | Assembled infested the area 7852 | -9/Mines | Core integrity fell below 50% 7935 | -9/Mines | Lost 7 parts (1p2n1u3w) 8163 | -9/Mines | Deemed a non-threat by the Exiles lab entrance 8163 | -9/Mines | Discovered new exit (range 5) 8168 | -9/Mines | Entered Exiles 8174 | -9/Exiles | Build established: Mutant 8196 | -9/Exiles | Met 8R-AWN 8214 | -9/Exiles | Met EX-HEX 8289 | -9/Exiles | Met EX-DEC 8309 | -9/Exiles | Learned location of Zion (-6) 8348 | -9/Exiles | Discovered new exit (range 12) 8365 | -9/Exiles | Entered Mines 8508 | -8/Mines | Core integrity fell below 20% 8525 | -8/Mines | Destroyed by G-50 Soldier with Heavy Laser Last Messages --------------- 08480_ K-01 Serf collects debris. 08493_ Plasma Injector explodes. 08493_ T-07 Excavator destroyed. 08495_ U-05 Engineer lays Concrete. 08495_ Slug penetrates R-06 Scavenger. 08495_ R-06 Scavenger destroyed. 08495_ R-06 Scavenger collects Lgt. Ion Engine. 08496_ U-05 Engineer lays Concrete. 08498_ Slug penetrates Wall. 08499_ U-05 Engineer lays Concrete. 08507_ Slug penetrates Wall. 08507_ H-55 Commando destroyed. 08508_ Commando 3a destroyed. 08516_ Wheel destroyed. 08517_ Critical hit (Burn: +37). 08520_ G-47 Trooper suffers critical hit (Burn). 08521_ Cooling System destroyed. 08522_ Beam Rifle destroyed. 08523_ Hrd. Medium Armor Plating destroyed. 08523_ Critical hit (Burn: +37). Map ----- +----------------------------------------------------+ | ?????????????????????????######??????????###???? | | ????????????????????????##%" ##??????### ##??? | | ????????????????????????# " ######## #??? | | ????????????????????????# #??? | | ????????????????????????## %! #??? | | ?????????????????????????# #### #??? | | ?????????????????????????# ##??# ##??? | | ?????????????????????????# ##??## ##???? | | ?????????????????????????## ###??## ##????? | | ????????????????????????### #????# #?????? | | ????????????????????????# #????# ##?????? | | ????????????????????????# #????# #??????? | | ????????????????????????# ###???## ##??????? | | ????????????????????????# #????## ##???????? | | ????????????????????????# #???## ##????????? | | ????????????????????????# #??## ##????????? | | ????????????????????????# #?## #????????? | | ????????????????????????# ### #????????? | | ????????????????????????# ## #????###?? | | ????????????????????????# # #????# ##? | | ????????????????????????# # ##??## #? | | ????????????????????????# #### #? | | ????????????????????????# ## ##? | | ????????????????????????# ### #?? | | ????????????????????????# #?## #### ##?? | | ????????????????????????#@ #??####??#### #??? | | ????????????????????????# ###?????????## #??? | | ????????????????????????# ##?????????#####??? | | ???????????# "#####ggg #????????????????? | | ???????????# %%= #????????????????? | | ???????????# %==*[ ##????????????????? | | ??????????? % "##### #?????????????????? | | ???????????? = ????????# ##?????????????????? | | ???????????????????????? #??????????????????? | | ???????????????????????? ??????????????????? | | ???????????????????????## ??????????????????? | | ????????????????????????# ?????????????????? | | ????????????????????????## ?????????????????? | | ??????????????????????????## ????????????????? | | ????????????????????????????# ????????????????? | | ????????????????????????????? ???????????????? | | ????????????????????????????? ???????????????? | | ????????????????????????????? ???????????????? | | ?????????????????????????????? ????????????????? | | ???????????????????????????????????????????????? | | ???????????????????????????????????????????????? | | ???????????????????????????????????????????????? | | ???????????????????????????????????????????????? | | ???????????????????????????????????????????????? | | ???????????????????????????????????????????????? | +----------------------------------------------------+ Best States ------------- Heat Dissipation 50 Coolant Potential 50 Energy Generation 12 Energy Capacity 265 Matter Stores 300 Matter Capacity 300 Sight Range 16 Terrain Scan Density 10 Armor Coverage 225 Resistance: EM 15 Core Shielding 20 Evasion (%) 40 Recoil Reduction 2 Item Schematics ----------------- Hacking Suite | -9/Materials | Scanalyzed Robot Schematics ------------------ None Fabricated ------------ Nothing Alien Tech Used ----------------- None Achievements -------------- None Challenges ------------ None Game ------ Seed MetafiberScanCasing Manual? 0 Play Time 00:35:28 Cumulative 1722.1 hours Start 2023.06.29 @ 13:58:38 End 2023.06.29 @ 14:32:59 Sessions 1 Manual Loads 0 Difficulty Rogue Special Mode None Game No. 608 Rogue 608 Adventurer 0 Explorer 0 Win Type - Total 131 Types 27/13/57/7/1/2/22/1/1 Lore% 95 Gallery% 95 Achievement% 87 Wizard Run 0 Options --------- ASCII 0 Keyboard 0 Movement Numpad Keybinds 0 Fullscreen 2 Font 18/SmallcapsGlow Map View 76x50 Tactical HUD 1 Map Filters NONE Filters NONE Steam 1 RUN: 9f13c91c-30b4-41b6-99f9-68fcf6324d9d